[Event "January 9 Late 2024"]
[Site "https://www.chess.com"]
[Date "2024.01.09"]
[Round "4"]
[White "Figorito, Nick"]
[Black "Boyer, Mahel"]
[Result "0-1"]
[Board "100"]
[TimeControl "180+1"]
[WhiteFideId "30923689"]
[BlackFideId "45102422"]
[WhiteElo "2411"]
[BlackElo "2669"]
[WhiteTeam "USA"]
[BlackTeam "FRA"]
[WhiteClock "0:00:03"]
[BlackClock "0:00:40"]

1. Nf3 {[%clk 0:03:00]}  d6 {[%clk 0:02:56]} 2. g3 {[%clk 0:03:01]}  e5 {[%clk 0:02:55]} 3. Bg2 {[%clk 0:03:01]}  g6 {[%clk 0:02:55]} 4. O-O {[%clk 0:03:01]}  Bg7 {[%clk 0:02:55]} 5. c4 {[%clk 0:03:02]}  Nf6 {[%clk 0:02:54]} 6. Nc3 {[%clk 0:03:02]}  O-O {[%clk 0:02:54]} 7. d3 {[%clk 0:03:03]}  a5 {[%clk 0:02:47]} 8. Bg5 {[%clk 0:03:02]}  h6 {[%clk 0:02:47]} 9. Bxf6 {[%clk 0:03:02]}  Qxf6 {[%clk 0:02:48]} 10. a3 {[%clk 0:02:54]}  Qd8 {[%clk 0:02:41]} 11. Rb1 {[%clk 0:02:54]}  f5 {[%clk 0:02:33]} 12. Ne1 {[%clk 0:02:49]}  Nd7 {[%clk 0:02:29]} 13. Nc2 {[%clk 0:02:48]}  a4 {[%clk 0:02:26]} 14. Nb4 {[%clk 0:02:46]}  Nc5 {[%clk 0:02:26]} 15. e3 {[%clk 0:02:38]}  c6 {[%clk 0:02:13]} 16. d4 {[%clk 0:02:36]}  exd4 {[%clk 0:02:13]} 17. exd4 {[%clk 0:02:37]}  Nb3 {[%clk 0:02:14]} 18. Nxa4 {[%clk 0:02:07]}  Nxd4 {[%clk 0:02:12]} 19. Nc3 {[%clk 0:02:07]}  f4 {[%clk 0:02:09]} 20. Nc2 {[%clk 0:02:04]}  Nxc2 {[%clk 0:02:05]} 21. Qxc2 {[%clk 0:02:04]}  f3 {[%clk 0:02:06]} 22. Bh1 {[%clk 0:01:54]}  Bf5 {[%clk 0:02:05]} 23. Qb3 {[%clk 0:01:50]}  Bxb1 {[%clk 0:01:53]} 24. Rxb1 {[%clk 0:01:51]}  Qe7 {[%clk 0:01:53]} 25. Na2 {[%clk 0:01:18]}  Qe2 {[%clk 0:01:40]} 26. Nc3 {[%clk 0:00:57]}  Bxc3 {[%clk 0:01:31]} 27. Qxc3 {[%clk 0:00:48]}  Rae8 {[%clk 0:01:31]} 28. h4 {[%clk 0:00:35]}  Re5 {[%clk 0:01:15]} 29. Qd4 {[%clk 0:00:30]}  Rf6 {[%clk 0:00:45]} 30. Qg4 {[%clk 0:00:25]}  Kg7 {[%clk 0:00:44]} 31. Qd7+ {[%clk 0:00:24]}  Re7 {[%clk 0:00:43]} 32. Qg4 {[%clk 0:00:23]}  Qe4 {[%clk 0:00:43]} 33. Qxe4 {[%clk 0:00:19]}  Rxe4 {[%clk 0:00:44]} 34. b3 {[%clk 0:00:18]}  Re2 {[%clk 0:00:41]} 35. b4 {[%clk 0:00:12]}  g5 {[%clk 0:00:41]} 36. hxg5 {[%clk 0:00:11]}  hxg5 {[%clk 0:00:42]} 37. g4 {[%clk 0:00:11]}  Re4 {[%clk 0:00:41]} 38. Rb3 {[%clk 0:00:09]}  Rxg4+ {[%clk 0:00:41]} 39. Kf1 {[%clk 0:00:08]}  Rgf4 {[%clk 0:00:41]} 40. Ke1 {[%clk 0:00:08]}  g4 {[%clk 0:00:40]} 41. Kd2 {[%clk 0:00:03]}  Rh6 {[%clk 0:00:40]} 0-1

[Event "January 9 Late 2024"]
[Site "https://www.chess.com"]
[Date "2024.01.09"]
[Round "4"]
[White "Vestby-Ellingsen, Mads"]
[Black "Bogaudinov, Rushan"]
[Result "1-0"]
[Board "102"]
[TimeControl "180+1"]
[WhiteFideId "1520857"]
[BlackFideId "4129288"]
[WhiteElo "2654"]
[BlackElo "2398"]
[WhiteTeam "NOR"]
[BlackTeam "RUS"]
[WhiteClock "0:00:03"]
[BlackClock "0:00:10"]

1. e4 {[%clk 0:03:00]}  a6 {[%clk 0:02:55]} 2. d4 {[%clk 0:02:59]}  e6 {[%clk 0:02:55]} 3. Bd3 {[%clk 0:02:58]}  b5 {[%clk 0:02:54]} 4. c3 {[%clk 0:02:58]}  Bb7 {[%clk 0:02:54]} 5. Nf3 {[%clk 0:02:59]}  c5 {[%clk 0:02:53]} 6. Qe2 {[%clk 0:02:59]}  c4 {[%clk 0:02:52]} 7. Bc2 {[%clk 0:02:59]}  d6 {[%clk 0:02:52]} 8. b3 {[%clk 0:02:54]}  cxb3 {[%clk 0:02:48]} 9. axb3 {[%clk 0:02:55]}  Nf6 {[%clk 0:02:47]} 10. O-O {[%clk 0:02:53]}  Be7 {[%clk 0:02:47]} 11. Nbd2 {[%clk 0:02:43]}  Qc7 {[%clk 0:02:46]} 12. Bb2 {[%clk 0:02:42]}  Nbd7 {[%clk 0:02:38]} 13. b4 {[%clk 0:02:40]}  Nb6 {[%clk 0:02:35]} 14. Bb3 {[%clk 0:02:20]}  d5 {[%clk 0:02:22]} 15. e5 {[%clk 0:02:08]}  Nfd7 {[%clk 0:02:11]} 16. Bc2 {[%clk 0:02:01]}  Nc4 {[%clk 0:01:54]} 17. Nxc4 {[%clk 0:02:00]}  dxc4 {[%clk 0:01:54]} 18. Be4 {[%clk 0:01:57]}  Nb6 {[%clk 0:01:52]} 19. Bc1 {[%clk 0:01:50]}  Bxe4 {[%clk 0:01:48]} 20. Qxe4 {[%clk 0:01:51]}  Nd5 {[%clk 0:01:49]} 21. Bd2 {[%clk 0:01:50]}  O-O {[%clk 0:01:46]} 22. h4 {[%clk 0:01:49]}  a5 {[%clk 0:01:42]} 23. bxa5 {[%clk 0:01:46]}  Rxa5 {[%clk 0:01:40]} 24. Rab1 {[%clk 0:01:47]}  Rb8 {[%clk 0:01:32]} 25. Qg4 {[%clk 0:01:40]}  Bf8 {[%clk 0:01:25]} 26. h5 {[%clk 0:01:37]}  Ra2 {[%clk 0:01:21]} 27. h6 {[%clk 0:01:35]}  g6 {[%clk 0:01:14]} 28. Rfd1 {[%clk 0:01:34]}  Rxd2 {[%clk 0:01:10]} 29. Rxd2 {[%clk 0:01:32]}  Nxc3 {[%clk 0:01:11]} 30. Re1 {[%clk 0:01:13]}  Bxh6 {[%clk 0:01:06]} 31. Rc2 {[%clk 0:01:12]}  Nd5 {[%clk 0:01:01]} 32. Qh4 {[%clk 0:01:09]}  Bg7 {[%clk 0:00:53]} 33. Ng5 {[%clk 0:01:06]}  h6 {[%clk 0:00:53]} 34. Ne4 {[%clk 0:01:05]}  b4 {[%clk 0:00:42]} 35. Nc5 {[%clk 0:00:41]}  b3 {[%clk 0:00:39]} 36. Rxc4 {[%clk 0:00:37]}  b2 {[%clk 0:00:37]} 37. Rb1 {[%clk 0:00:37]}  Qa5 {[%clk 0:00:25]} 38. Qg3 {[%clk 0:00:28]}  Qa2 {[%clk 0:00:22]} 39. Qd3 {[%clk 0:00:26]}  Nf4 {[%clk 0:00:21]} 40. Qc2 {[%clk 0:00:24]}  g5 {[%clk 0:00:17]} 41. Nd3 {[%clk 0:00:18]}  Nxd3 {[%clk 0:00:12]} 42. Qxd3 {[%clk 0:00:17]}  Bf8 {[%clk 0:00:10]} 43. Qc2 {[%clk 0:00:14]}  Ba3 {[%clk 0:00:08]} 44. Ra4 {[%clk 0:00:02]}  Qb3 {[%clk 0:00:06]} 45. Qxb3 {[%clk 0:00:02]}  Rxb3 {[%clk 0:00:07]} 46. Kf1 {[%clk 0:00:02]}  Bb4 {[%clk 0:00:07]} 47. Ke2 {[%clk 0:00:01]}  Bc3 {[%clk 0:00:07]} 48. Kd1 {[%clk 0:00:02]}  Bb4 {[%clk 0:00:05]} 49. Kc2 {[%clk 0:00:01]}  Ra3 {[%clk 0:00:05]} 50. Rxb4 {[%clk 0:00:01]}  Kg7 {[%clk 0:00:04]} 51. Kd2 {[%clk 0:00:01]}  h5 {[%clk 0:00:03]} 52. Ke2 {[%clk 0:00:02]}  Rc3 {[%clk 0:00:03]} 53. R4xb2 {[%clk 0:00:02]}  Rc4 {[%clk 0:00:04]} 54. Kd3 {[%clk 0:00:02]}  Rc6 {[%clk 0:00:03]} 55. Rc2 {[%clk 0:00:02]}  Rc8 {[%clk 0:00:03]} 56. Rxc8 {[%clk 0:00:02]}  Kg6 {[%clk 0:00:04]} 57. Rg8+ {[%clk 0:00:02]}  Kf5 {[%clk 0:00:04]} 58. Rg7 {[%clk 0:00:02]}  h4 {[%clk 0:00:05]} 59. Rxf7+ {[%clk 0:00:02]}  Kg6 {[%clk 0:00:06]} 60. Rf6+ {[%clk 0:00:03]}  Kh5 {[%clk 0:00:07]} 61. Rh1 {[%clk 0:00:02]}  Kg4 {[%clk 0:00:08]} 62. f3+ {[%clk 0:00:02]}  Kg3 {[%clk 0:00:08]} 63. Rg6 {[%clk 0:00:02]}  Kf4 {[%clk 0:00:08]} 64. Rg7 {[%clk 0:00:02]}  Kf5 {[%clk 0:00:09]} 65. Rf7+ {[%clk 0:00:02]}  Kg6 {[%clk 0:00:10]} 66. Rf6+ {[%clk 0:00:02]}  Kh5 {[%clk 0:00:10]} 67. g4# {[%clk 0:00:03]} 1-0

[Event "January 9 Late 2024"]
[Site "https://www.chess.com"]
[Date "2024.01.09"]
[Round "4"]
[White "Lizak, Peter"]
[Black "Sohier, Julien"]
[Result "1/2-1/2"]
[Board "105"]
[TimeControl "180+1"]
[WhiteFideId "731595"]
[BlackFideId "645346"]
[WhiteElo "2642"]
[BlackElo "2357"]
[WhiteTeam "HUN"]
[BlackTeam "FRA"]
[WhiteClock "0:00:34"]
[BlackClock "0:00:19"]

1. d4 {[%clk 0:03:00]}  d5 {[%clk 0:02:59]} 2. Nc3 {[%clk 0:03:01]}  Nf6 {[%clk 0:02:59]} 3. Bf4 {[%clk 0:03:01]}  c5 {[%clk 0:02:58]} 4. e3 {[%clk 0:03:01]}  cxd4 {[%clk 0:02:58]} 5. exd4 {[%clk 0:03:01]}  a6 {[%clk 0:02:59]} 6. Nf3 {[%clk 0:03:02]}  Nc6 {[%clk 0:02:59]} 7. Ne5 {[%clk 0:03:01]}  Bf5 {[%clk 0:02:50]} 8. g4 {[%clk 0:03:01]}  Be6 {[%clk 0:02:49]} 9. g5 {[%clk 0:02:53]}  Nxe5 {[%clk 0:02:41]} 10. dxe5 {[%clk 0:02:43]}  Ne4 {[%clk 0:02:34]} 11. Nxe4 {[%clk 0:02:39]}  dxe4 {[%clk 0:02:34]} 12. Qxd8+ {[%clk 0:02:34]}  Rxd8 {[%clk 0:02:35]} 13. Bg2 {[%clk 0:02:33]}  Bd5 {[%clk 0:02:35]} 14. e6 {[%clk 0:02:16]}  Bxe6 {[%clk 0:02:31]} 15. Bxe4 {[%clk 0:02:16]}  Bd5 {[%clk 0:02:32]} 16. Bxd5 {[%clk 0:02:04]}  Rxd5 {[%clk 0:02:33]} 17. Ke2 {[%clk 0:02:04]}  e5 {[%clk 0:02:26]} 18. Be3 {[%clk 0:02:02]}  Bc5 {[%clk 0:02:21]} 19. c4 {[%clk 0:02:02]}  Bxe3 {[%clk 0:02:13]} 20. cxd5 {[%clk 0:02:02]}  Bd4 {[%clk 0:02:14]} 21. Rac1 {[%clk 0:01:48]}  Kd7 {[%clk 0:02:14]} 22. Rc2 {[%clk 0:01:48]}  Kd6 {[%clk 0:02:13]} 23. Rhc1 {[%clk 0:01:48]}  Kxd5 {[%clk 0:02:13]} 24. Rc7 {[%clk 0:01:47]}  h6 {[%clk 0:02:11]} 25. gxh6 {[%clk 0:01:24]}  Rxh6 {[%clk 0:02:11]} 26. Rxf7 {[%clk 0:01:24]}  Rxh2 {[%clk 0:02:10]} 27. Rcc7 {[%clk 0:01:19]}  b5 {[%clk 0:02:02]} 28. b3 {[%clk 0:01:19]}  g5 {[%clk 0:01:58]} 29. a4 {[%clk 0:01:13]}  bxa4 {[%clk 0:01:58]} 30. bxa4 {[%clk 0:01:13]}  g4 {[%clk 0:01:58]} 31. Kf1 {[%clk 0:01:14]}  Rh1+ {[%clk 0:01:49]} 32. Kg2 {[%clk 0:01:10]}  Ra1 {[%clk 0:01:50]} 33. Rfd7+ {[%clk 0:01:00]}  Ke6 {[%clk 0:01:46]} 34. Rg7 {[%clk 0:00:56]}  Rxa4 {[%clk 0:01:44]} 35. Rc6+ {[%clk 0:00:27]}  Kf5 {[%clk 0:01:35]} 36. Rc8 {[%clk 0:00:26]}  Ra2 {[%clk 0:01:26]} 37. Rf8+ {[%clk 0:00:26]}  Ke4 {[%clk 0:01:26]} 38. Rxg4+ {[%clk 0:00:26]}  Kd5 {[%clk 0:01:27]} 39. Rg6 {[%clk 0:00:26]}  a5 {[%clk 0:01:26]} 40. Ra6 {[%clk 0:00:26]}  Kc4 {[%clk 0:01:05]} 41. Kg3 {[%clk 0:00:26]}  Kb5 {[%clk 0:01:00]} 42. Rd6 {[%clk 0:00:24]}  a4 {[%clk 0:00:58]} 43. Rd7 {[%clk 0:00:20]}  a3 {[%clk 0:00:56]} 44. f4 {[%clk 0:00:20]}  Bf2+ {[%clk 0:00:52]} 45. Kg4 {[%clk 0:00:20]}  exf4 {[%clk 0:00:52]} 46. Rf5+ {[%clk 0:00:21]}  Bc5 {[%clk 0:00:51]} 47. Rdd5 {[%clk 0:00:20]}  Rc2 {[%clk 0:00:51]} 48. Rxf4 {[%clk 0:00:19]}  a2 {[%clk 0:00:51]} 49. Rf1 {[%clk 0:00:20]}  Kc6 {[%clk 0:00:51]} 50. Rd8 {[%clk 0:00:20]}  Kb5 {[%clk 0:00:50]} 51. Ra8 {[%clk 0:00:20]}  Kc4 {[%clk 0:00:49]} 52. Ra1 {[%clk 0:00:20]}  Bd4 {[%clk 0:00:48]} 53. R1xa2 {[%clk 0:00:20]}  Rxa2 {[%clk 0:00:48]} 54. Rxa2 {[%clk 0:00:20]}  Kd5 {[%clk 0:00:49]} 55. Re2 {[%clk 0:00:20]}  Kc4 {[%clk 0:00:48]} 56. Kf3 {[%clk 0:00:21]}  Kb5 {[%clk 0:00:46]} 57. Re8 {[%clk 0:00:22]}  Bb6 {[%clk 0:00:45]} 58. Ke4 {[%clk 0:00:22]}  Ka6 {[%clk 0:00:46]} 59. Kd5 {[%clk 0:00:22]}  Kb7 {[%clk 0:00:46]} 60. Re7+ {[%clk 0:00:22]}  Ka8 {[%clk 0:00:46]} 61. Kc6 {[%clk 0:00:21]}  Ba7 {[%clk 0:00:46]} 62. Rb7 {[%clk 0:00:20]}  Bb8 {[%clk 0:00:46]} 63. Rb1 {[%clk 0:00:21]}  Ba7 {[%clk 0:00:46]} 64. Ra1 {[%clk 0:00:22]}  Kb8 {[%clk 0:00:45]} 65. Kb5 {[%clk 0:00:22]}  Ka8 {[%clk 0:00:46]} 66. Ka6 {[%clk 0:00:23]}  Bb8 {[%clk 0:00:45]} 67. Rf1 {[%clk 0:00:24]}  Bh2 {[%clk 0:00:43]} 68. Rf7 {[%clk 0:00:24]}  Bg3 {[%clk 0:00:43]} 69. Rg7 {[%clk 0:00:24]}  Bh2 {[%clk 0:00:43]} 70. Ra7+ {[%clk 0:00:25]}  Kb8 {[%clk 0:00:41]} 71. Rh7 {[%clk 0:00:25]}  Be5 {[%clk 0:00:41]} 72. Rh5 {[%clk 0:00:26]}  Bd4 {[%clk 0:00:39]} 73. Rb5+ {[%clk 0:00:24]}  Ka8 {[%clk 0:00:37]} 74. Rb7 {[%clk 0:00:25]}  Be5 {[%clk 0:00:36]} 75. Ra7+ {[%clk 0:00:25]}  Kb8 {[%clk 0:00:35]} 76. Re7 {[%clk 0:00:26]}  Bg3 {[%clk 0:00:35]} 77. Re8+ {[%clk 0:00:26]}  Kc7 {[%clk 0:00:34]} 78. Rg8 {[%clk 0:00:27]}  Bd6 {[%clk 0:00:34]} 79. Rg4 {[%clk 0:00:27]}  Be5 {[%clk 0:00:34]} 80. Rc4+ {[%clk 0:00:27]}  Kb8 {[%clk 0:00:34]} 81. Kb5 {[%clk 0:00:28]}  Kb7 {[%clk 0:00:33]} 82. Re4 {[%clk 0:00:27]}  Bg3 {[%clk 0:00:33]} 83. Re7+ {[%clk 0:00:27]}  Ka8 {[%clk 0:00:33]} 84. Ka6 {[%clk 0:00:28]}  Bf4 {[%clk 0:00:32]} 85. Rg7 {[%clk 0:00:28]}  Bh2 {[%clk 0:00:31]} 86. Rg2 {[%clk 0:00:28]}  Bf4 {[%clk 0:00:31]} 87. Rf2 {[%clk 0:00:28]}  Bg3 {[%clk 0:00:31]} 88. Rf7 {[%clk 0:00:28]}  Be5 {[%clk 0:00:31]} 89. Ra7+ {[%clk 0:00:28]}  Kb8 {[%clk 0:00:31]} 90. Re7 {[%clk 0:00:28]}  Bh2 {[%clk 0:00:30]} 91. Kb6 {[%clk 0:00:28]}  Bg1+ {[%clk 0:00:29]} 92. Kc6 {[%clk 0:00:29]}  Bh2 {[%clk 0:00:28]} 93. Re2 {[%clk 0:00:29]}  Bg3 {[%clk 0:00:28]} 94. Rb2+ {[%clk 0:00:29]}  Ka8 {[%clk 0:00:27]} 95. Ra2+ {[%clk 0:00:30]}  Kb8 {[%clk 0:00:27]} 96. Ra3 {[%clk 0:00:30]}  Bh2 {[%clk 0:00:24]} 97. Rh3 {[%clk 0:00:31]}  Bf4 {[%clk 0:00:24]} 98. Rh8+ {[%clk 0:00:31]}  Ka7 {[%clk 0:00:23]} 99. Rf8 {[%clk 0:00:32]}  Bh2 {[%clk 0:00:23]} 100. Rf7+ {[%clk 0:00:32]}  Ka8 {[%clk 0:00:22]} 101. Rf2 {[%clk 0:00:32]}  Bg3 {[%clk 0:00:22]} 102. Rb2 {[%clk 0:00:33]}  Bf4 {[%clk 0:00:21]} 103. Rb5 {[%clk 0:00:33]}  Bh2 {[%clk 0:00:19]} 104. Ra5+ {[%clk 0:00:34]} 1/2-1/2

[Event "January 9 Late 2024"]
[Site "https://www.chess.com"]
[Date "2024.01.10"]
[Round "4"]
[White "Kargosha, Bahman"]
[Black "Goryachkina, Aleksandra"]
[Result "0-1"]
[Board "106"]
[TimeControl "180+1"]
[WhiteFideId "12503452"]
[BlackFideId "4147103"]
[WhiteElo "2311"]
[BlackElo "2635"]
[WhiteTeam "AUS"]
[BlackTeam "FID"]
[WhiteClock "0:00:00"]
[BlackClock "0:00:15"]

1. d4 {[%clk 0:03:00]}  Nf6 {[%clk 0:02:59]} 2. c4 {[%clk 0:03:01]}  e6 {[%clk 0:02:59]} 3. Nc3 {[%clk 0:03:01]}  Bb4 {[%clk 0:02:59]} 4. e3 {[%clk 0:03:01]}  O-O {[%clk 0:02:57]} 5. Bd2 {[%clk 0:03:02]}  d5 {[%clk 0:02:56]} 6. Nf3 {[%clk 0:03:01]}  Nbd7 {[%clk 0:02:53]} 7. Bd3 {[%clk 0:02:56]}  c6 {[%clk 0:02:52]} 8. Qc2 {[%clk 0:02:52]}  dxc4 {[%clk 0:02:38]} 9. Bxc4 {[%clk 0:02:52]}  Bd6 {[%clk 0:02:37]} 10. O-O {[%clk 0:02:48]}  e5 {[%clk 0:02:35]} 11. dxe5 {[%clk 0:02:41]}  Nxe5 {[%clk 0:02:35]} 12. Nxe5 {[%clk 0:02:41]}  Bxe5 {[%clk 0:02:36]} 13. f4 {[%clk 0:02:41]}  Bc7 {[%clk 0:02:35]} 14. Rad1 {[%clk 0:02:40]}  Qe7 {[%clk 0:02:34]} 15. Bd3 {[%clk 0:02:15]}  Bg4 {[%clk 0:02:25]} 16. Rde1 {[%clk 0:02:15]}  Rad8 {[%clk 0:02:16]} 17. Bc1 {[%clk 0:01:46]}  Qd7 {[%clk 0:02:07]} 18. Bc4 {[%clk 0:01:36]}  b5 {[%clk 0:02:07]} 19. Bb3 {[%clk 0:01:33]}  c5 {[%clk 0:01:45]} 20. Qf2 {[%clk 0:01:18]}  c4 {[%clk 0:01:37]} 21. Bc2 {[%clk 0:01:18]}  b4 {[%clk 0:01:33]} 22. Ne2 {[%clk 0:00:59]}  Bf5 {[%clk 0:01:24]} 23. Ng3 {[%clk 0:00:56]}  Bd3 {[%clk 0:01:08]} 24. Rd1 {[%clk 0:00:48]}  Bb6 {[%clk 0:00:58]} 25. Qd2 {[%clk 0:00:24]}  Ng4 {[%clk 0:00:51]} 26. Rf3 {[%clk 0:00:21]}  Rfe8 {[%clk 0:00:50]} 27. Bxd3 {[%clk 0:00:19]}  cxd3 {[%clk 0:00:44]} 28. Qxb4 {[%clk 0:00:18]}  Nxe3 {[%clk 0:00:19]} 29. Bxe3 {[%clk 0:00:18]}  Rxe3 {[%clk 0:00:19]} 30. Rxe3 {[%clk 0:00:14]}  Bxe3+ {[%clk 0:00:20]} 31. Kh1 {[%clk 0:00:14]}  h6 {[%clk 0:00:15]} 32. Qe4 {[%clk 0:00:00]}  Bb6 {[%clk 0:00:15]} 0-1

[Event "January 9 Late 2024"]
[Site "https://www.chess.com"]
[Date "2024.01.09"]
[Round "4"]
[White "Erigaisi Arjun"]
[Black "Keller, Peter"]
[Result "1-0"]
[Board "107"]
[TimeControl "180+1"]
[WhiteFideId "35009192"]
[BlackFideId "1272105"]
[WhiteElo "3014"]
[BlackElo "2249"]
[WhiteTeam "IND"]
[BlackTeam "GER"]
[WhiteClock "0:02:12"]
[BlackClock "0:00:59"]

1. b3 {[%clk 0:02:56]}  e5 {[%clk 0:02:59]} 2. Bb2 {[%clk 0:02:52]}  Nc6 {[%clk 0:02:58]} 3. c4 {[%clk 0:02:52]}  Nf6 {[%clk 0:02:58]} 4. e3 {[%clk 0:02:52]}  d5 {[%clk 0:02:56]} 5. cxd5 {[%clk 0:02:52]}  Nxd5 {[%clk 0:02:57]} 6. a3 {[%clk 0:02:53]}  Be6 {[%clk 0:02:55]} 7. Qc2 {[%clk 0:02:50]}  a6 {[%clk 0:02:51]} 8. Nf3 {[%clk 0:02:49]}  f6 {[%clk 0:02:47]} 9. d3 {[%clk 0:02:49]}  Qd7 {[%clk 0:02:46]} 10. Nbd2 {[%clk 0:02:49]}  O-O-O {[%clk 0:02:41]} 11. b4 {[%clk 0:02:46]}  g5 {[%clk 0:02:38]} 12. h3 {[%clk 0:02:44]}  h5 {[%clk 0:02:36]} 13. Ne4 {[%clk 0:02:44]}  Kb8 {[%clk 0:02:28]} 14. d4 {[%clk 0:02:41]}  exd4 {[%clk 0:02:13]} 15. Nxd4 {[%clk 0:02:41]}  Nxd4 {[%clk 0:02:11]} 16. Bxd4 {[%clk 0:02:42]}  Bf5 {[%clk 0:01:47]} 17. Bd3 {[%clk 0:02:34]}  Bxb4+ {[%clk 0:01:45]} 18. axb4 {[%clk 0:02:26]}  Nxb4 {[%clk 0:01:44]} 19. Qb1 {[%clk 0:02:27]}  Nxd3+ {[%clk 0:01:38]} 20. Qxd3 {[%clk 0:02:28]}  Rhe8 {[%clk 0:01:17]} 21. Rxa6 {[%clk 0:02:13]}  Bxe4 {[%clk 0:01:09]} 22. Ra8+ {[%clk 0:02:13]}  Kxa8 {[%clk 0:01:04]} 23. Qa3+ {[%clk 0:02:14]}  Qa4 {[%clk 0:01:03]} 24. Qxa4+ {[%clk 0:02:14]}  Kb8 {[%clk 0:00:59]} 25. O-O {[%clk 0:02:12]} 1-0

[Event "January 9 Late 2024"]
[Site "https://www.chess.com"]
[Date "2024.01.09"]
[Round "4"]
[White "Ghasi, Ameet K"]
[Black "Gurevich, Dmitry"]
[Result "1-0"]
[Board "111"]
[TimeControl "180+1"]
[WhiteFideId "409200"]
[BlackFideId "2000407"]
[WhiteElo "2757"]
[BlackElo "2532"]
[WhiteTeam "ENG"]
[BlackTeam "USA"]
[WhiteClock "0:00:51"]
[BlackClock "0:00:01"]

1. d4 {[%clk 0:03:00]}  Nf6 {[%clk 0:02:59]} 2. Nf3 {[%clk 0:03:01]}  e6 {[%clk 0:02:58]} 3. g3 {[%clk 0:03:01]}  b5 {[%clk 0:02:57]} 4. Bg2 {[%clk 0:03:02]}  Bb7 {[%clk 0:02:57]} 5. O-O {[%clk 0:03:02]}  Na6 {[%clk 0:02:56]} 6. Bg5 {[%clk 0:03:03]}  Be7 {[%clk 0:02:55]} 7. Bxf6 {[%clk 0:03:02]}  gxf6 {[%clk 0:02:47]} 8. c3 {[%clk 0:03:03]}  h5 {[%clk 0:02:45]} 9. Nbd2 {[%clk 0:03:01]}  f5 {[%clk 0:02:35]} 10. Qc2 {[%clk 0:02:58]}  Rb8 {[%clk 0:02:24]} 11. a4 {[%clk 0:02:57]}  b4 {[%clk 0:02:23]} 12. e4 {[%clk 0:02:58]}  fxe4 {[%clk 0:02:12]} 13. Nxe4 {[%clk 0:02:57]}  f5 {[%clk 0:02:10]} 14. Ned2 {[%clk 0:02:56]}  h4 {[%clk 0:02:08]} 15. Rae1 {[%clk 0:02:53]}  h3 {[%clk 0:01:56]} 16. Bh1 {[%clk 0:02:50]}  Qc8 {[%clk 0:01:48]} 17. c4 {[%clk 0:02:49]}  b3 {[%clk 0:01:42]} 18. Qd1 {[%clk 0:02:31]}  Nb4 {[%clk 0:01:35]} 19. d5 {[%clk 0:02:26]}  Nd3 {[%clk 0:01:22]} 20. Re3 {[%clk 0:02:22]}  Nxb2 {[%clk 0:01:16]} 21. Qxb3 {[%clk 0:02:18]}  Bxd5 {[%clk 0:01:08]} 22. Qc3 {[%clk 0:02:15]}  Rg8 {[%clk 0:00:56]} 23. cxd5 {[%clk 0:02:13]}  f4 {[%clk 0:00:56]} 24. Re2 {[%clk 0:02:05]}  Qa6 {[%clk 0:00:50]} 25. Rfe1 {[%clk 0:01:51]}  Nd3 {[%clk 0:00:48]} 26. dxe6 {[%clk 0:01:48]}  Nxe1 {[%clk 0:00:46]} 27. exd7+ {[%clk 0:01:49]}  Kd8 {[%clk 0:00:43]} 28. Rxe1 {[%clk 0:01:46]}  fxg3 {[%clk 0:00:36]} 29. hxg3 {[%clk 0:01:45]}  Qd6 {[%clk 0:00:25]} 30. Ne4 {[%clk 0:01:43]}  Qb4 {[%clk 0:00:23]} 31. Ne5 {[%clk 0:01:11]}  Qxc3 {[%clk 0:00:21]} 32. Nxc3 {[%clk 0:01:12]}  h2+ {[%clk 0:00:16]} 33. Kf1 {[%clk 0:01:12]}  Rb6 {[%clk 0:00:13]} 34. Nc6+ {[%clk 0:01:07]}  Kxd7 {[%clk 0:00:12]} 35. Rxe7+ {[%clk 0:01:04]}  Kd6 {[%clk 0:00:13]} 36. Nb5+ {[%clk 0:01:02]}  Kc5 {[%clk 0:00:12]} 37. Rxc7 {[%clk 0:00:53]}  Rxc6 {[%clk 0:00:02]} 38. Rxc6+ {[%clk 0:00:53]}  Kb4 {[%clk 0:00:02]} 39. Nxa7 {[%clk 0:00:51]}  Rd8 {[%clk 0:00:01]} 1-0

[Event "January 9 Late 2024"]
[Site "https://www.chess.com"]
[Date "2024.01.09"]
[Round "4"]
[White "Timmermans, Mark"]
[Black "Jaiveer Mahendru"]
[Result "1-0"]
[Board "113"]
[TimeControl "180+1"]
[WhiteFideId "1026399"]
[BlackFideId "25611151"]
[WhiteElo "2744"]
[BlackElo "2515"]
[WhiteTeam "NED"]
[BlackTeam "IND"]
[WhiteClock "0:00:18"]
[BlackClock "0:00:00"]

1. b4 {[%clk 0:03:00]}  e6 {[%clk 0:02:58]} 2. Bb2 {[%clk 0:03:00]}  Nf6 {[%clk 0:02:57]} 3. b5 {[%clk 0:03:01]}  Be7 {[%clk 0:02:54]} 4. c4 {[%clk 0:03:00]}  d5 {[%clk 0:02:53]} 5. e3 {[%clk 0:03:01]}  O-O {[%clk 0:02:53]} 6. Nf3 {[%clk 0:03:00]}  c6 {[%clk 0:02:52]} 7. a4 {[%clk 0:03:01]}  a6 {[%clk 0:02:52]} 8. Be2 {[%clk 0:03:01]}  axb5 {[%clk 0:02:52]} 9. axb5 {[%clk 0:03:01]}  Rxa1 {[%clk 0:02:52]} 10. Bxa1 {[%clk 0:03:02]}  dxc4 {[%clk 0:02:53]} 11. Bxc4 {[%clk 0:03:03]}  cxb5 {[%clk 0:02:53]} 12. Bxb5 {[%clk 0:03:04]}  Qa5 {[%clk 0:02:53]} 13. Nc3 {[%clk 0:03:04]}  Nc6 {[%clk 0:02:52]} 14. O-O {[%clk 0:03:04]}  Rd8 {[%clk 0:02:53]} 15. Qb3 {[%clk 0:03:04]}  h6 {[%clk 0:02:48]} 16. d4 {[%clk 0:03:00]}  Nb4 {[%clk 0:02:45]} 17. Bc4 {[%clk 0:02:57]}  Nbd5 {[%clk 0:02:42]} 18. Rb1 {[%clk 0:02:54]}  Bd7 {[%clk 0:02:37]} 19. Bxd5 {[%clk 0:02:45]}  Nxd5 {[%clk 0:02:24]} 20. Nxd5 {[%clk 0:02:44]}  exd5 {[%clk 0:02:22]} 21. Qxb7 {[%clk 0:02:44]}  Bd6 {[%clk 0:02:14]} 22. Qb2 {[%clk 0:02:33]}  Bf5 {[%clk 0:02:08]} 23. Rc1 {[%clk 0:02:20]}  Rb8 {[%clk 0:02:05]} 24. Qe2 {[%clk 0:02:08]}  Qa3 {[%clk 0:02:01]} 25. Rd1 {[%clk 0:02:02]}  Bg4 {[%clk 0:01:59]} 26. h3 {[%clk 0:01:59]}  Bh5 {[%clk 0:01:58]} 27. Qc2 {[%clk 0:01:38]}  Bg6 {[%clk 0:01:11]} 28. Qc3 {[%clk 0:01:33]}  Qa4 {[%clk 0:01:10]} 29. Rc1 {[%clk 0:01:31]}  Bf5 {[%clk 0:01:02]} 30. Ne5 {[%clk 0:01:05]}  f6 {[%clk 0:00:35]} 31. Qc6 {[%clk 0:01:05]}  Qa3 {[%clk 0:00:35]} 32. Nf3 {[%clk 0:01:00]}  Be6 {[%clk 0:00:24]} 33. Rf1 {[%clk 0:00:53]}  Rc8 {[%clk 0:00:24]} 34. Qb5 {[%clk 0:00:52]}  Rb8 {[%clk 0:00:23]} 35. Qe2 {[%clk 0:00:51]}  Ra8 {[%clk 0:00:23]} 36. Bb2 {[%clk 0:00:42]}  Qa2 {[%clk 0:00:23]} 37. Qd2 {[%clk 0:00:42]}  Qb3 {[%clk 0:00:20]} 38. Qc3 {[%clk 0:00:34]}  Qb5 {[%clk 0:00:20]} 39. Ra1 {[%clk 0:00:31]}  Rb8 {[%clk 0:00:19]} 40. Ba3 {[%clk 0:00:30]}  Rc8 {[%clk 0:00:12]} 41. Qe1 {[%clk 0:00:30]}  Bb8 {[%clk 0:00:12]} 42. Bc5 {[%clk 0:00:30]}  Qd7 {[%clk 0:00:10]} 43. Nd2 {[%clk 0:00:27]}  f5 {[%clk 0:00:08]} 44. f4 {[%clk 0:00:26]}  g5 {[%clk 0:00:08]} 45. g3 {[%clk 0:00:25]}  Kh7 {[%clk 0:00:08]} 46. Nf3 {[%clk 0:00:25]}  gxf4 {[%clk 0:00:08]} 47. exf4 {[%clk 0:00:22]}  Rg8 {[%clk 0:00:09]} 48. Kh2 {[%clk 0:00:22]}  Qg7 {[%clk 0:00:08]} 49. Qf2 {[%clk 0:00:21]}  Bc8 {[%clk 0:00:08]} 50. Ne5 {[%clk 0:00:20]}  Qb7 {[%clk 0:00:08]} 51. Ra2 {[%clk 0:00:19]}  Qb3 {[%clk 0:00:09]} 52. Rb2 {[%clk 0:00:19]}  Qc3 {[%clk 0:00:03]} 53. Rxb8 {[%clk 0:00:19]}  Qc1 {[%clk 0:00:04]} 54. Rb2 {[%clk 0:00:19]}  Rxg3 {[%clk 0:00:00]} 55. Kxg3 {[%clk 0:00:18]} 1-0